Workbook

Sheet Topics
A1: Chapter 8: Confidence Intervals (Interval Estimation)
A2: Ch 7 (Pop. Mean, μ, Known) compared to Ch 8 (Pop. Mean, μ, NOT Known)
A3: Estimate Population Mean (μ): μ NOT Known and s Known -- Use z Distribution
A4: Estimate Population Mean (μ): μ NOT Known and NOT s Known -- Use t Distribution
A5: Estimate Population Proportion (p): Use z Distribution
A6: Estimate Sample Size

Sheet Ch7
A1: ="An insurance company claims that the average cost per year for a policy is "&DOLLAR(B7,0)&"." -> An insurance company claims that the average cost per year for a policy is $822. | J1: Sample
A2: ="The standard deviation for the population is "&DOLLAR(B8,0)&"." -> The standard deviation for the population is $202. | J2: 716
A3: ="What is the probability of getting a sample mean within +/- "&DOLLAR(B9)&"?" -> What is the probability of getting a sample mean within +/- $23.32? | J3: 926
A4: If you take a random sample and get a sample mean of | J4: 722
A5: =DOLLAR(B13,0)&" (n = "&B10&"), is the claim reasonable?" -> $850 (n = 300), is the claim reasonable? | J5: 810
J6: 873
A7: Mew | B7: 822 | C7: Annual Auto Insurance Cost | J7: 873
A8: Sigma | B8: 202 | J8: 1074
A9: Margin of error = Standard Error * 2 | B9: =B14*2 -> 23.32495088 | J9: 1135
A10: n | B10: =COUNT(J2:J301) -> 300 | J10: 763
A11: N | B11: 25000 | J11: 1074
A12: n/N | B12: =B10/B11 -> 0.012 | D12: =IF(B12="","","less than 0.05, don't need SQRT((N-n)/(N-1))") -> less than 0.05, don't need SQRT((N-n)/(N-1)) | J12: 675
A13: Sample Xbar - Point Estimate of Population Parameter | B13: =ROUND(AVERAGE(J2:J301),0) -> 850 | J13: 824
A14: Standard Error | B14: =B8/SQRT(B10) -> 11.66247544 | J14: 988
A15: Low Xbar | B15: =$B$7-$B$9 -> 798.6750491 | J15: 873
A16: High Xbar | B16: =$B$7+$B$9 -> 845.3249509 | J16: 824
A17: ="P("&DOLLAR(B15)&" <= Xbar <= "&DOLLAR(B16)&")" -> P($798.68 <= Xbar <= $845.32) | B17: =_xlfn.NORM.DIST(B16,B7,B14,1)-_xlfn.NORM.DIST(B15,B7,B14,1) -> 0.9544997361 | J17: 873
A18: Conclusion: | J18: 622
A19: Xbar is only a point estimate of μ. The difference is always Sampling Error (Xbar - μ). | J19: 1074
A20: Is our sampling error acceptable, or NOT acceptable? | J20: 867
A21: Statements we are allowed to make: | J21: 824
A22: We know Mew, μ, and we make a statement about the probability that Xbar lies within an interval. | J22: 722
A23: ="We are "&TEXT($B$17,"0%")&" sure that our Xbar will lie between "&DOLLAR($B$15)&" and "&DOLLAR($B$16)&"." -> We are 95% sure that our Xbar will lie between $798.68 and $845.32. | J23: 703
A24: ="We run a "&TEXT(1-$B$17,"0%")&" that our Xbar will lie OUTSIDE the interval "&DOLLAR($B$15)&" and "&DOLLAR($B$16)&"." -> We run a 5% that our Xbar will lie OUTSIDE the interval $798.68 and $845.32. | J24: 824
A25: ="The probability is "&TEXT($B$17,"0%")&" that our Xbar lies with in +/- "&DOLLAR(B9)&"." -> The probability is 95% that our Xbar lies with in +/- $23.32. | J25: 824
A26: ="The probability is "&TEXT($B$17,"0%")&" that our Xbar lies with in +/- 2 standard deviations (Standard Error because it is the SDOXbar)" -> The probability is 95% that our Xbar lies with in +/- 2 standard deviations (Standard Error because it is the SDOXbar) | J26: 424
A27: ="Our Xbar of "&DOLLAR(B13)&" is outside our interval and because the chances of this are so small ("&TEXT(1-B17,"0%")&"), we say that it" -> Our Xbar of $850.00 is outside our interval and because the chances of this are so small (5%), we say that it | J27: 962
A28: ="does not seem reasonable that we could have taken a sample and gotten "&DOLLAR(B13)&". Our sampling error is not acceptable." -> does not seem reasonable that we could have taken a sample and gotten $850.00. Our sampling error is not acceptable. | J28: 1002
A29: ="We are "&TEXT(B17,"0%")&" sure that the original claim of "&DOLLAR(B7)&" does not seem reasonable." -> We are 95% sure that the original claim of $822.00 does not seem reasonable. | J29: 926
J30: 988
J31: 926
J32: 1105
J33: 761
E34: 761.5 | F34: =$B$7-2*$B$14 -> 798.6750491 | J34: 926
E35: 886.5 | F35: =$B$7+2*$B$14 -> 845.3249509 | J35: 886
B36: Xbar | C36: P(Xbar) | D36: ="P("&DOLLAR(B7-B8/SQRT(COUNT($J$2:$J$301))*2,0)&"<=Xbar<="&DOLLAR(B7+B8/SQRT(COUNT($J$2:$J$301))*2,0)&")" -> P($799<=Xbar<=$845) | J36: 1035
B37: 761.5 | C37: =_xlfn.NORM.DIST(B37,$B$7,$B$14,0) -> 4.903177405e-08 | D37: =IF(AND(B37>=$F$34,B37<=$F$35),C37,"") ->  | J37: 775
B38: 761.75 | C38: =_xlfn.NORM.DIST(B38,$B$7,$B$14,0) -> 5.478635213e-08 | D38: =IF(AND(B38>=$F$34,B38<=$F$35),C38,"") ->  | J38: 724
B39: 762 | C39: 6.118818875e-08 | J39: 671
B40: 762.25 | C40: 6.830669091e-08 | J40: 905
B41: 762.5 | C41: 7.621831287e-08 | J41: 915
B42: 762.75 | C42: 8.500722742e-08 | J42: 516
B43: 763 | C43: 9.476605625e-08 | J43: 926
B44: 763.25 | C44: 1.055966643e-07 | J44: 715
B45: 763.5 | C45: 1.176110228e-07 | J45: 842
B46: 763.75 | C46: 1.309321471e-07 | J46: 618
B47: 764 | C47: 1.456951144e-07 | J47: 988
B48: 764.25 | C48: 1.620481671e-07 | J48: 872
B49: 764.5 | C49: 1.801539105e-07 | J49: 769
B50: 764.75 | C50: 2.001906084e-07 | J50: 819
B51: 765 | C51: 2.223535876e-07 | J51: 549
B52: 765.25 | C52: 2.468567565e-07 | J52: 843
B53: 765.5 | C53: 2.739342474e-07 | J53: 921
B54: 765.75 | C54: 3.038421918e-07 | J54: 1074
B55: 766 | C55: 3.368606363e-07 | J55: 926
B56: 766.25 | C56: 3.732956119e-07 | J56: 824
B57: 766.5 | C57: 4.134813644e-07 | J57: 1030
B58: 766.75 | C58: 4.57782759e-07 | J58: 870
B59: 767 | C59: 5.065978701e-07 | J59: 1074
B60: 767.25 | C60: 5.603607689e-07 | J60: 824
B61: 767.5 | C61: 6.195445218e-07 | J61: 1074
B62: 767.75 | C62: 6.846644139e-07 | J62: 601
B63: 768 | C63: 7.562814108e-07 | J63: 824
B64: 768.25 | C64: 8.350058756e-07 | J64: 873
B65: 768.5 | C65: 9.215015562e-07 | J65: 1074
B66: 768.75 | C66: 1.016489859e-06 | J66: 673
B67: 769 | C67: 1.120754427e-06 | J67: 678
B68: 769.25 | C68: 1.235146044e-06 | J68: 722
B69: 769.5 | C69: 1.360587874e-06 | J69: 722
B70: 769.75 | C70: 1.498081069e-06 | J70: 838
B71: 770 | C71: 1.648710758e-06 | J71: 476
B72: 770.25 | C72: 1.813652435e-06 | J72: 988
B73: 770.5 | C73: 1.994178779e-06 | J73: 745
B74: 770.75 | C74: 2.191666923e-06 | J74: 736
B75: 771 | C75: 2.407606193e-06 | J75: 873
B76: 771.25 | C76: 2.643606347e-06 | J76: 905
B77: 771.5 | C77: 2.901406341e-06 | J77: 988
B78: 771.75 | C78: 3.182883637e-06 | J78: 988
B79: 772 | C79: 3.490064095e-06 | J79: 1074
B80: 772.25 | C80: 3.82513247e-06 | J80: 1184
B81: 772.5 | C81: 4.190443532e-06 | J81: 775
B82: 772.75 | C82: 4.588533864e-06 | J82: 824
B83: 773 | C83: 5.022134336e-06 | J83: 926
B84: 773.25 | C84: 5.494183309e-06 | J84: 588
B85: 773.5 | C85: 6.007840591e-06 | J85: 761
B86: 773.75 | C86: 6.56650217e-06 | J86: 739
B87: 774 | C87: 7.173815765e-06 | J87: 907
B88: 774.25 | C88: 7.833697223e-06 | J88: 722
B89: 774.5 | C89: 8.550347789e-06 | J89: 1108
B90: 774.75 | C90: 9.328272284e-06 | J90: 722
B91: 775 | C91: 1.017229823e-05 | J91: 1074
B92: 775.25 | C92: 1.108759591e-05 | J92: 1074
B93: 775.5 | C93: 1.20796995e-05 | J93: 824
B94: 775.75 | C94: 1.315452915e-05 | J94: 532
B95: 776 | C95: 1.431841416e-05 | J95: 824
B96: 776.25 | C96: 1.557811726e-05 | J96: 760
B97: 776.5 | C97: 1.694085997e-05 | J97: 926
B98: 776.75 | C98: 1.841434911e-05 | J98: 1074
B99: 777 | C99: 2.000680448e-05 | J99: 1074
B100: 777.25 | C100: 2.172698772e-05 | J100: 873
B101: 777.5 | C101: 2.35842324e-05 | J101: 1074
B102: 777.75 | C102: =_xlfn.NORM.DIST(B102,$B$7,$B$14,0) -> 2.558847526e-05 | D102: =IF(AND(B102>=$F$34,B102<=$F$35),C102,"") ->  | J102: 910
B103: 778 | C103: 2.775028876e-05 | J103: 528
B104: 778.25 | C104: 3.008091487e-05 | J104: 873
B105: 778.5 | C105: 3.259230008e-05 | J105: 686
B106: 778.75 | C106: 3.529713172e-05 | J106: 390
B107: 779 | C107: 3.820887552e-05 | J107: 873
B108: 779.25 | C108: 4.134181445e-05 | J108: 852
B109: 779.5 | C109: 4.47110888e-05 | J109: 1074
B110: 779.75 | C110: 4.833273755e-05 | J110: 692
B111: 780 | C111: 5.222374089e-05 | J111: 816
B112: 780.25 | C112: 5.640206407e-05 | J112: 873
B113: 780.5 | C113: 6.088670232e-05 | J113: 996
B114: 780.75 | C114: 6.569772695e-05 | J114: 717
B115: 781 | C115: 7.085633265e-05 | J115: 926
B116: 781.25 | C116: 7.638488568e-05 | J116: 775
B117: 781.5 | C117: 8.230697321e-05 | J117: 1074
B118: 781.75 | C118: 8.864745358e-05 | J118: 806
B119: 782 | C119: 9.543250734e-05 | J119: 722
B120: 782.25 | C120: 0.0001026896892 | J120: 775
B121: 782.5 | C121: 0.0001104479808 | J121: 836
B122: 782.75 | C122: 0.0001187378435 | J122: 743
B123: 783 | C123: 0.0001275912727 | J123: 885
B124: 783.25 | C124: 0.0001370418515 | J124: 991
B125: 783.5 | C125: 0.0001471248054 | J125: 1226
B126: 783.75 | C126: 0.0001578770565 | J126: 763
B127: 784 | C127: 0.0001693372785 | J127: 673
B128: 784.25 | C128: 0.0001815459507 | J128: 951
B129: 784.5 | C129: 0.000194545412 | J129: 771
B130: 784.75 | C130: 0.0002083799145 | J130: 926
B131: 785 | C131: 0.0002230956763 | J131: 758
B132: 785.25 | C132: 0.0002387409332 | J132: 988
B133: 785.5 | C133: 0.0002553659898 | J133: 628
B134: 785.75 | C134: 0.0002730232686 | J134: 824
B135: 786 | C135: 0.0002917673577 | J135: 1074
B136: 786.25 | C136: 0.0003116550574 | J136: 626
B137: 786.5 | C137: 0.0003327454235 | J137: 1074
B138: 786.75 | C138: 0.0003550998092 | J138: 954
B139: 787 | C139: 0.0003787819038 | J139: 788
B140: 787.25 | C140: 0.000403857769 | J140: 1020
B141: 787.5 | C141: 0.0004303958715 | J141: 988
B142: 787.75 | C142: 0.0004584671124 | J142: 1010
B143: 788 | C143: 0.0004881448524 | J143: 605
B144: 788.25 | C144: 0.0005195049333 | J144: 775
B145: 788.5 | C145: 0.0005526256947 | J145: 775
B146: 788.75 | C146: 0.0005875879859 | J146: 926
B147: 789 | C147: 0.0006244751725 | J147: 722
B148: 789.25 | C148: 0.0006633731379 | J148: 1074
B149: 789.5 | C149: 0.0007043702784 | J149: 500
B150: 789.75 | C150: 0.0007475574923 | J150: 952
B151: 790 | C151: 0.0007930281626 | J151: 740
B152: 790.25 | C152: 0.000840878132 | J152: 824
B153: 790.5 | C153: 0.0008912056718 | J153: 775
B154: 790.75 | C154: 0.0009441114417 | J154: 1232
B155: 791 | C155: 0.0009996984431 | J155: 926
B156: 791.25 | C156: 0.001058071963 | J156: 765
B157: 791.5 | C157: 0.001119339507 | J157: 460
B158: 791.75 | C158: 0.001183610733 | J158: 436
B159: 792 | C159: 0.001250997357 | J159: 601
B160: 792.25 | C160: 0.001321613072 | J160: 967
B161: 792.5 | C161: 0.001395573437 | J161: 988
B162: 792.75 | C162: 0.001472995769 | J162: 776
B163: 793 | C163: 0.001553999018 | J163: 706
B164: 793.25 | C164: 0.001638703632 | J164: 571
B165: 793.5 | C165: 0.001727231414 | J165: 906
B166: 793.75 | C166: =_xlfn.NORM.DIST(B166,$B$7,$B$14,0) -> 0.001819705366 | D166: =IF(AND(B166>=$F$34,B166<=$F$35),C166,"") ->  | J166: 769
B167: 794 | C167: 0.001916249519 | J167: 616
B168: 794.25 | C168: 0.00201698876 | J168: 1074
B169: 794.5 | C169: 0.002122048632 | J169: 873
B170: 794.75 | C170: 0.002231555144 | J170: 557
B171: 795 | C171: 0.002345634546 | J171: 873
B172: 795.25 | C172: 0.002464413113 | J172: 1268
B173: 795.5 | C173: 0.002588016903 | J173: 1074
B174: 795.75 | C174: 0.002716571511 | J174: 926
B175: 796 | C175: 0.002850201805 | J175: 753
B176: 796.25 | C176: 0.002989031662 | J176: 988
B177: 796.5 | C177: 0.00313318368 | J177: 1050
B178: 796.75 | C178: 0.003282778888 | J178: 710
B179: 797 | C179: 0.003437936442 | J179: 403
B180: 797.25 | C180: 0.003598773311 | J180: 775
B181: 797.5 | C181: 0.003765403952 | J181: 926
B182: 797.75 | C182: 0.003937939984 | J182: 824
B183: 798 | C183: 0.004116489837 | J183: 886
B184: 798.25 | C184: 0.004301158411 | J184: 1021
B185: 798.5 | C185: 0.004492046713 | J185: 926
B186: 798.75 | C186: 0.004689251495 | D186: 0.004689251495 | J186: 873
B187: 799 | C187: 0.004892864884 | D187: 0.004892864884 | J187: 722
B188: 799.25 | C188: 0.005102974005 | D188: 0.005102974005 | J188: 1074
B189: 799.5 | C189: 0.0053196606 | D189: 0.0053196606 | J189: 687
B190: 799.75 | C190: 0.005543000647 | D190: 0.005543000647 | J190: 873
B191: 800 | C191: 0.005773063965 | D191: 0.005773063965 | J191: 1081
B192: 800.25 | C192: 0.006009913833 | D192: 0.006009913833 | J192: 562
B193: 800.5 | C193: 0.006253606595 | D193: 0.006253606595 | J193: 577
B194: 800.75 | C194: 0.006504191272 | D194: 0.006504191272 | J194: 1074
B195: 801 | C195: 0.006761709171 | D195: 0.006761709171 | J195: 759
B196: 801.25 | C196: 0.0070261935 | D196: 0.0070261935 | J196: 988
B197: 801.5 | C197: 0.007297668987 | D197: 0.007297668987 | J197: 1032
B198: 801.75 | C198: 0.007576151499 | D198: 0.007576151499 | J198: 705
B199: 802 | C199: 0.007861647669 | D199: 0.007861647669 | J199: 1090
B200: 802.25 | C200: 0.008154154537 | D200: 0.008154154537 | J200: 939
... 337 more rows

Sheet Sigma Known
A1: An insurance company would like to estimate the average amount paid per year for an insurance policy. They have past data that can
A2: provide a good estimate of the population standard deviation.
A3: Create an 95% confidence interval so that the company has a range of values to estimate the unknown population mean.
A5: Sample Annual Insurance Fees | C5: n | E5: =COUNT(A6:A305) | J5: 716
A6: 938 | C6: Xbar | E6: =AVERAGE(A6:A305) | J6: 926
A7: 601 | C7: Sigma | D7: 202
A8: 988 | C8: Standard Error of Mean =Sigma/SQRT(n) | E8: =D7/SQRT(D5) | F8: Standard Deviation of Sampling Distribution of Xbar
A9: 390 | C9: Confidence Level | D9: 0.95 | F9: How sure we are that pop mean is in interval
A10: 733 | C10: Alpha | E10: =1-D9 | F10: How sure we are that pop mean is NOT in interval. Risk we take that Pop Mean is not in interval
A11: 1074 | C11: Alpha/2 | E11: =D10/2 | F11: Prob. In upper or lower tail
A12: 988
A13: 759 | C13: Method 1:
A14: 776 | C14: NORM.INV Method
A15: 1020 | C15: Lower Limit | E15: =NORM.INV(D11,D6,D8) | G15: =NORM.INV(Alpha/2,Xbar,Standard Error)
A16: 1074 | C16: Upper Limit | E16: =NORM.INV(1-D11,D6,D8) | G16: =NORM.INV(1-Alpha/2,Xbar,Standard Error)
A17: 927
A18: 1100 | C18: Method 2:
A19: 1220 | C19: NORM.S.INV Method
A20: 1002 | C20: Z Associated with upper Alpha/2 | E20: =NORM.S.INV(1-D11) | G20: =NORM.S.INV(1-Alpha/2)
A21: 843 | C21: Margin of Error = Alpha/2 * Standard Error | E21: =D8*D20
A22: 852 | C22: Lower Limit | E22: =D6-D21
A23: 926 | C23: Upper Limit | E23: =D6+D21
A24: 806
A25: 980 | C25: Method 3:
A26: 703 | C26: CONFIDENCE.NORM Method
A27: 793 | C27: Margin of Error | E27: =CONFIDENCE.NORM(D10,D7,D5) | G27: =CONFIDENCE.NORM(Alpha,Sigma,Sample Size)
A28: 774 | C28: Lower Limit | E28: =D6-D27
A29: 1135 | C29: Upper Limit | E29: =D6+D27
A30: 717 | C30: =IF(D29="","","Our "&TEXT($D$9,"0%")&" Confidence Interval has limits of "&ROUND($D$28,2)&" and "&ROUND($D$29,2)&". We are about "&TEXT($D$9,"0%")&" sure that the population mean will lie within this interval. We are about "&TEXT(1-$D$9,"0%")&" sure that the population mean will NOT lie within this interval. ") -> 
A31: 872 | C31: =IF(D29="","","If we were to construct 100 similar intervals we would expect "&D9*100&" to contain the population mean and "&(1-D9)*100&" to NOT contain the population mean.") -> 
A32: 979 | C32: =IF(D29="","","We estimate the population mean to be about "&ROUND(D6,2)&" with a margin of error of +/- "&ROUND(D27,2)&".") -> 
A33: 870 | C33: =IF(D29="","","A reasonable range of values for the population mean is "&ROUND($D$28,2)&" to "&ROUND($D$29,2)&".") -> 
A34: 873 | C34: =IF(D29="","","We are "&TEXT($D$9,"0%")&" sure that the pop mean for annual insurance cost is between "&DOLLAR($D$28,2)&" and "&DOLLAR($D$29,2)&".") -> 
A35: 996
A36: 716 | C36: Method 3:
A37: 722 | C37: CONFIDENCE.NORM Method
A38: 769 | C38: Margin of Error | D38: =_xlfn.CONFIDENCE.NORM(1-D9,D7,COUNT(A6:A305)) -> 22.85803183 | E38: =CONFIDENCE.NORM(D10,D7,D5) | G38: =CONFIDENCE.NORM(Alpha,Sigma,Sample Size)
A39: 860 | C39: Sample Mean = Xbar = | D39: 850
A40: 824 | C40: Lower Limit | E40: =D39-D38
A41: 824 | C41: Upper Limit | E41: =D39+D38
A42: 905 | C42: ="We are "&TEXT($D$9,"0%")&" sure that the pop mean for annual insurance cost is between "&DOLLAR(D40,2)&" and "&DOLLAR(D41,2)&"." -> We are 95% sure that the pop mean for annual insurance cost is between $0.00 and $0.00.
A43: 879 | C43: Notice, that if it turned out that we could calculate the pop mean ($822), we would see that our Pop
A44: 395 | C44: Mean is not in our interval. This would be the 5% situation where our interval would not contain the
A45: 926 | C45: Pop Mean. How big should you make the interval, then?
A46: 816
A47: 873
A48: 686
A49: 722
A50: 722
A51: 835
A52: 436
A53: 843 | D53: Skew | E53: =SKEW(A6:A305) -> -0.3303148141
A54: 775 | D54: Max | E54: =MAX(A6:A305) -> 1268
A55: 824 | D55: Min | E55: =MIN(A6:A305) -> 249
A56: 824 | D56: Range | E56: =E54-E55 -> 1019
A57: 1110 | D57: Start | E57: 0
A58: 824 | D58: Increment | E58: 100
A59: 1074
A60: 988 | D60: Low | E60: High | F60: Frequency
A61: 1010 | D61: =E57 -> 0 | E61: =D61+$E$58 -> 100 | F61: =COUNTIFS($A$6:$A$305,">="&D61,$A$6:$A$305,"<="&E61) -> 0
A62: 775 | D62: =E61 -> 100 | E62: 200 | F62: =COUNTIFS($A$6:$A$305,">="&D62,$A$6:$A$305,"<="&E62) -> 0
A63: 988 | D63: =E62 -> 200 | E63: 300 | F63: 1
A64: 926 | D64: 300 | E64: 400 | F64: 3
A65: 722 | D65: 400 | E65: 500 | F65: 9
A66: 824 | D66: 500 | E66: 600 | F66: 13
A67: 715 | D67: 600 | E67: 700 | F67: 23
A68: 760 | D68: 700 | E68: 800 | F68: 70
A69: 988 | D69: 800 | E69: 900 | F69: 75
A70: 967 | D70: 900 | E70: 1000 | F70: 57
A71: 652 | D71: 1000 | E71: 1100 | F71: 39
A72: 736 | D72: 1100 | E72: 1200 | F72: 8
A73: 557 | D73: 1200 | E73: 1300 | F73: 4
A74: 1074
A75: 626
A76: 775
A77: 722
A78: 939
A79: 826
A80: 476
A81: 481
A82: 905
A83: 824
A84: 819
A85: 687
A86: 1074
A87: 705
A88: 502 | D88: Mew | E88: Xbar | F88: P(Xbar)
A89: 926 | E89: 21.8 | I89: 21.8
A90: 884 | E90: 21.9 | I90: 28.1
A91: 915 | E91: 22
A92: 709 | E92: 22.1
A93: 824 | E93: 22.2
A94: 722 | E94: 22.3
A95: 1064 | E95: 22.4
A96: 988 | E96: 22.5
A97: 745 | E97: 22.6
A98: 867 | E98: 22.7
A99: 926 | E99: 22.8
A100: 673 | E100: 22.9
A101: 1021 | E101: 23
A102: 618 | E102: 23.1
A103: 758 | E103: 23.2
A104: 824 | E104: 23.3
A105: 824 | E105: 23.4
A106: 753 | E106: 23.5
A107: 873 | E107: 23.6
A108: 716 | E108: 23.7
A109: 622 | E109: 23.8
A110: 1074 | E110: 23.9
A111: 873 | E111: 24
A112: 873 | E112: 24.1
A113: 715 | E113: 24.2
A114: 501 | E114: 24.3
A115: 838 | E115: 24.4
A116: 605 | E116: 24.5
A117: 675 | E117: 24.6
A118: 926 | E118: 24.7
A119: 761 | E119: 24.8
A120: 926 | E120: 24.9
A121: 988 | E121: 25
A122: 873 | E122: 25.1
A123: 722 | E123: 25.2
A124: 775 | E124: 25.3
A125: 1268 | E125: 25.4
A126: 778 | E126: 25.5
A127: 956 | E127: 25.6
A128: 895 | E128: 25.7
A129: 460 | E129: 25.8
A130: 722 | E130: 25.9
A131: 925 | E131: 26
A132: 771 | E132: 26.1
A133: 1074 | E133: 26.2
A134: 906 | E134: 26.3
A135: 926 | E135: 26.4
A136: 739 | E136: 26.5
A137: 988 | E137: 26.6
A138: 873 | E138: 26.7
A139: 390 | E139: 26.8
A140: 926 | E140: 26.9
A141: 1189 | E141: 27
A142: 1074 | E142: 27.1
A143: 420 | E143: 27.2
A144: 805 | E144: 27.3
A145: 873 | E145: 27.4
A146: 891 | E146: 27.5
A147: 988 | E147: 27.6
A148: 773 | E148: 27.7
A149: 1074 | E149: 27.8
A150: 424 | E150: 27.9
A151: 722 | E151: 28
A152: 894 | E152: 28.1
A153: 1074
A154: 528
A155: 1031
A156: 1074
A157: 1035
A158: 951
A159: 788
A160: 926
A161: 908
A162: 692
A163: 750
A164: 873
A165: 1074
A166: 1019
A167: 810
A168: 988
A169: 803
A170: 873
A171: 628
A172: 1105
A173: 824
A174: 952
A175: 724
A176: 962
A177: 516
A178: 659
A179: 793
A180: 1074
A181: 895
A182: 824
A183: 824
A184: 873
A185: 775
A186: 837
A187: 802
A188: 453
A189: 885
A190: 673
A191: 775
A192: 758
A193: 549
A194: 873
A195: 842
A196: 743
A197: 722
A198: 775
A199: 926
A200: 722
A201: 1074
... 104 more rows

Sheet Sigma Known(an)
A1: An insurance company would like to estimate the average amount paid per year for an insurance policy. They have past data that can
A2: provide a good estimate of the population standard deviation.
A3: Create an 95% confidence interval so that the company has a range of values to estimate the unknown population mean.
A5: Sample Annual Insurance Fees | C5: n | D5: =COUNT(A6:A305) -> 300 | E5: =COUNT(A6:A305) | J5: 716
A6: 938 | C6: Xbar | D6: =AVERAGE(A6:A305) -> 837.2066667 | E6: =AVERAGE(A6:A305) | J6: 926
A7: 601 | C7: Sigma | D7: 202
A8: 988 | C8: Standard Error of Mean =Sigma/SQRT(n) | D8: =D7/SQRT(D5) -> 11.66247544 | E8: =D7/SQRT(D5) | F8: Standard Deviation of Sampling Distribution of Xbar
A9: 390 | C9: Confidence Level | D9: 0.95 | F9: How sure we are that pop mean is in interval
A10: 733 | C10: Alpha | D10: =1-D9 -> 0.05 | E10: =1-D9 | F10: How sure we are that pop mean is NOT in interval. Risk we take that Pop Mean is not in interval
A11: 1074 | C11: Alpha/2 | D11: =D10/2 -> 0.025 | E11: =D10/2 | F11: Prob. In upper or lower tail
A12: 988
A13: 759 | C13: Method 1:
A14: 776 | C14: NORM.INV Method
A15: 1020 | C15: Lower Limit | D15: =_xlfn.NORM.INV(D11,D6,D8) -> 814.3486348 | E15: =NORM.INV(D11,D6,D8) | G15: =NORM.INV(Alpha/2,Xbar,Standard Error)
A16: 1074 | C16: Upper Limit | D16: =_xlfn.NORM.INV(1-D11,D6,D8) -> 860.0646985 | E16: =NORM.INV(1-D11,D6,D8) | G16: =NORM.INV(1-Alpha/2,Xbar,Standard Error)
A17: 927
A18: 1100 | C18: Method 2:
A19: 1220 | C19: NORM.S.INV Method
A20: 1002 | C20: Z Associated with upper Alpha/2 | D20: =_xlfn.NORM.S.INV(1-D11) -> 1.959963985 | E20: =NORM.S.INV(1-D11) | G20: =NORM.S.INV(1-Alpha/2)
A21: 843 | C21: Margin of Error = Alpha/2 * Standard Error | D21: =D20*D8 -> 22.85803183 | E21: =D8*D20
A22: 852 | C22: Lower Limit | D22: =D6-D21 -> 814.3486348 | E22: =D6-D21
A23: 926 | C23: Upper Limit | D23: =D6+D21 -> 860.0646985 | E23: =D6+D21
A24: 806
A25: 980 | C25: Method 3:
A26: 703 | C26: CONFIDENCE.NORM Method
A27: 793 | C27: Margin of Error | D27: =_xlfn.CONFIDENCE.NORM(D10,D7,D5) -> 22.85803183 | E27: =CONFIDENCE.NORM(D10,D7,D5) | G27: =CONFIDENCE.NORM(Alpha,Sigma,Sample Size)
A28: 774 | C28: Lower Limit | D28: =D6-D27 -> 814.3486348 | E28: =D6-D27
A29: 1135 | C29: Upper Limit | D29: =D6+D27 -> 860.0646985 | E29: =D6+D27
A30: 717 | C30: =IF(D29="","","Our "&TEXT($D$9,"0%")&" Confidence Interval has limits of "&ROUND($D$28,2)&" and "&ROUND($D$29,2)&". We are about "&TEXT($D$9,"0%")&" sure that the population mean will lie within this interval. We are about "&TEXT(1-$D$9,"0%")&" sure that the population mean will NOT lie within this interval. ") -> Our 95% Confidence Interval has limits of 814.35 and 860.06. We are about 95% sure that the population mean will lie within this interval. We are about 5% sure that the population mean will NOT lie within this interval.
A31: 872 | C31: =IF(D29="","","If we were to construct 100 similar intervals we would expect "&D9*100&" to contain the population mean and "&(1-D9)*100&" to NOT contain the population mean.") -> If we were to construct 100 similar intervals we would expect 95 to contain the population mean and 5 to NOT contain the population mean.
A32: 979 | C32: =IF(D29="","","We estimate the population mean to be about "&ROUND(D6,2)&" with a margin of error of +/- "&ROUND(D27,2)&".") -> We estimate the population mean to be about 837.21 with a margin of error of +/- 22.86.
A33: 870 | C33: =IF(D29="","","A reasonable range of values for the population mean is "&ROUND($D$28,2)&" to "&ROUND($D$29,2)&".") -> A reasonable range of values for the population mean is 814.35 to 860.06.
A34: 873 | C34: =IF(D29="","","We are "&TEXT($D$9,"0%")&" sure that the pop mean for annual insurance cost is between "&DOLLAR($D$28,2)&" and "&DOLLAR($D$29,2)&".") -> We are 95% sure that the pop mean for annual insurance cost is between $814.35 and $860.06.
A35: 996
A36: 716 | C36: Method 3:
A37: 722 | C37: CONFIDENCE.NORM Method
A38: 769 | C38: Margin of Error | D38: =_xlfn.CONFIDENCE.NORM(1-D9,D7,COUNT(A6:A305)) -> 22.85803183 | E38: =CONFIDENCE.NORM(D10,D7,D5) | G38: =CONFIDENCE.NORM(Alpha,Sigma,Sample Size)
A39: 860 | C39: Sample Mean = Xbar = | D39: 850
A40: 824 | C40: Lower Limit | D40: =D39-D38 -> 827.1419682 | E40: =D39-D38
A41: 824 | C41: Upper Limit | D41: =D39+D38 -> 872.8580318 | E41: =D39+D38
A42: 905 | C42: ="We are "&TEXT($D$9,"0%")&" sure that the pop mean for annual insurance cost is between "&DOLLAR(D40,2)&" and "&DOLLAR(D41,2)&"." -> We are 95% sure that the pop mean for annual insurance cost is between $827.14 and $872.86.
A43: 879 | C43: Notice, that if it turned out that we could calculate the pop mean ($822), we would see that our Pop
A44: 395 | C44: Mean is not in our interval. This would be the 5% situation where our interval would not contain the
A45: 926 | C45: Pop Mean. How big should you make the interval, then?
A46: 816
A47: 873
A48: 686
A49: 722
A50: 722
A51: 835
A52: 436
A53: 843 | D53: Skew | E53: =SKEW(A6:A305) -> -0.3303148141
A54: 775 | D54: Max | E54: =MAX(A6:A305) -> 1268
A55: 824 | D55: Min | E55: =MIN(A6:A305) -> 249
A56: 824 | D56: Range | E56: =E54-E55 -> 1019
A57: 1110 | D57: Start | E57: 0
A58: 824 | D58: Increment | E58: 100
A59: 1074
A60: 988 | D60: Low | E60: High | F60: Frequency
A61: 1010 | D61: =E57 -> 0 | E61: =D61+$E$58 -> 100 | F61: =COUNTIFS($A$6:$A$305,">="&D61,$A$6:$A$305,"<="&E61) -> 0
A62: 775 | D62: =E61 -> 100 | E62: 200 | F62: =COUNTIFS($A$6:$A$305,">="&D62,$A$6:$A$305,"<="&E62) -> 0
A63: 988 | D63: =E62 -> 200 | E63: 300 | F63: 1
A64: 926 | D64: 300 | E64: 400 | F64: 3
A65: 722 | D65: 400 | E65: 500 | F65: 9
A66: 824 | D66: 500 | E66: 600 | F66: 13
A67: 715 | D67: 600 | E67: 700 | F67: 23
A68: 760 | D68: 700 | E68: 800 | F68: 70
A69: 988 | D69: 800 | E69: 900 | F69: 75
A70: 967 | D70: 900 | E70: 1000 | F70: 57
A71: 652 | D71: 1000 | E71: 1100 | F71: 39
A72: 736 | D72: 1100 | E72: 1200 | F72: 8
A73: 557 | D73: 1200 | E73: 1300 | F73: 4
A74: 1074
A75: 626
A76: 775
A77: 722
A78: 939
A79: 826
A80: 476
A81: 481
A82: 905
A83: 824
A84: 819
A85: 687
A86: 1074
A87: 705
A88: 502 | D88: Mew | E88: Xbar | F88: P(Xbar)
A89: 926 | E89: 21.8 | I89: 21.8
A90: 884 | E90: 21.9 | I90: 28.1
A91: 915 | E91: 22
A92: 709 | E92: 22.1
A93: 824 | E93: 22.2
A94: 722 | E94: 22.3
A95: 1064 | E95: 22.4
A96: 988 | E96: 22.5
A97: 745 | E97: 22.6
A98: 867 | E98: 22.7
A99: 926 | E99: 22.8
A100: 673 | E100: 22.9
A101: 1021 | E101: 23
A102: 618 | E102: 23.1
A103: 758 | E103: 23.2
A104: 824 | E104: 23.3
A105: 824 | E105: 23.4
A106: 753 | E106: 23.5
A107: 873 | E107: 23.6
A108: 716 | E108: 23.7
A109: 622 | E109: 23.8
A110: 1074 | E110: 23.9
A111: 873 | E111: 24
A112: 873 | E112: 24.1
A113: 715 | E113: 24.2
A114: 501 | E114: 24.3
A115: 838 | E115: 24.4
A116: 605 | E116: 24.5
A117: 675 | E117: 24.6
A118: 926 | E118: 24.7
A119: 761 | E119: 24.8
A120: 926 | E120: 24.9
A121: 988 | E121: 25
A122: 873 | E122: 25.1
A123: 722 | E123: 25.2
A124: 775 | E124: 25.3
A125: 1268 | E125: 25.4
A126: 778 | E126: 25.5
A127: 956 | E127: 25.6
A128: 895 | E128: 25.7
A129: 460 | E129: 25.8
A130: 722 | E130: 25.9
A131: 925 | E131: 26
A132: 771 | E132: 26.1
A133: 1074 | E133: 26.2
A134: 906 | E134: 26.3
A135: 926 | E135: 26.4
A136: 739 | E136: 26.5
A137: 988 | E137: 26.6
A138: 873 | E138: 26.7
A139: 390 | E139: 26.8
A140: 926 | E140: 26.9
A141: 1189 | E141: 27
A142: 1074 | E142: 27.1
A143: 420 | E143: 27.2
A144: 805 | E144: 27.3
A145: 873 | E145: 27.4
A146: 891 | E146: 27.5
A147: 988 | E147: 27.6
A148: 773 | E148: 27.7
A149: 1074 | E149: 27.8
A150: 424 | E150: 27.9
A151: 722 | E151: 28
A152: 894 | E152: 28.1
A153: 1074
A154: 528
A155: 1031
A156: 1074
A157: 1035
A158: 951
A159: 788
A160: 926
A161: 908
A162: 692
A163: 750
A164: 873
A165: 1074
A166: 1019
A167: 810
A168: 988
A169: 803
A170: 873
A171: 628
A172: 1105
A173: 824
A174: 952
A175: 724
A176: 962
A177: 516
A178: 659
A179: 793
A180: 1074
A181: 895
A182: 824
A183: 824
A184: 873
A185: 775
A186: 837
A187: 802
A188: 453
A189: 885
A190: 673
A191: 775
A192: 758
A193: 549
A194: 873
A195: 842
A196: 743
A197: 722
A198: 775
A199: 926
A200: 722
A201: 1074
... 104 more rows

Sheet t
A1: n = | B1: 100 | D1: n = | E1: 5
A2: df = | B2: =B1-1 -> 99 | D2: df = | E2: =E1-1 -> 4
A3: Confidence Level | B3: 0.95 | D3: Confidence Level | E3: 0.95
A4: T-value Upper | B4: =_xlfn.T.INV.2T(1-B3,B1) -> 1.983971519 | D4: T-value Upper | E4: =_xlfn.T.INV.2T(1-E3,E1) -> 2.570581836
A6: t | B6: =A1&B1&CHAR(10)&A2&B2 -> n = 100 df = 99 | D6: t | E6: =D1&E1&CHAR(10)&D2&E2 -> n = 5 df = 4
A7: -3 | B7: =_xlfn.T.DIST(A7,B$2,0) -> 0.005133166328 | D7: =A7 -> -3 | E7: =_xlfn.T.DIST(D7,E$2,0) -> 0.01969349809
A8: -2.99 | B8: =_xlfn.T.DIST(A8,B$2,0) -> 0.005277549401 | D8: =A8 -> -2.99 | E8: =_xlfn.T.DIST(D8,E$2,0) -> 0.01992219399
A9: -2.98 | B9: 0.005425574207 | D9: -2.98 | E9: 0.02015384297
A10: -2.97 | B10: 0.005577318923 | D10: -2.97 | E10: 0.02038848538
A11: -2.96 | B11: 0.005732862977 | D11: -2.96 | E11: 0.02062616208
A12: -2.95 | B12: 0.005892287055 | D12: -2.95 | E12: 0.02086691452
A13: -2.94 | B13: 0.006055673112 | D13: -2.94 | E13: 0.0211107847
A14: -2.93 | B14: 0.006223104373 | D14: -2.93 | E14: 0.02135781516
A15: -2.92 | B15: 0.006394665341 | D15: -2.92 | E15: 0.02160804904
A16: -2.91 | B16: 0.006570441803 | D16: -2.91 | E16: 0.02186153004
A17: -2.9 | B17: 0.006750520833 | D17: -2.9 | E17: 0.02211830245
A18: -2.89 | B18: 0.006934990801 | D18: -2.89 | E18: 0.02237841115
A19: -2.88 | B19: 0.007123941368 | D19: -2.88 | E19: 0.02264190161
A20: -2.87 | B20: 0.007317463501 | D20: -2.87 | E20: 0.02290881993
A21: -2.86 | B21: 0.007515649465 | D21: -2.86 | E21: 0.02317921278
A22: -2.85 | B22: 0.007718592832 | D22: -2.85 | E22: 0.02345312747
A23: -2.84 | B23: 0.007926388482 | D23: -2.84 | E23: 0.02373061194
A24: -2.83 | B24: 0.008139132601 | D24: -2.83 | E24: 0.02401171473
A25: -2.82 | B25: 0.008356922685 | D25: -2.82 | E25: 0.02429648504
A26: -2.81 | B26: 0.008579857538 | D26: -2.81 | E26: 0.0245849727
A27: -2.8 | B27: 0.00880803727 | D27: -2.8 | E27: 0.02487722821
A28: -2.79 | B28: 0.009041563301 | D28: -2.79 | E28: 0.02517330269
A29: -2.78 | B29: 0.009280538352 | D29: -2.78 | E29: 0.02547324795
A30: -2.77 | B30: 0.009525066447 | D30: -2.77 | E30: 0.02577711645
A31: -2.76 | B31: 0.009775252906 | D31: -2.76 | E31: 0.02608496135
A32: -2.75 | B32: 0.01003120434 | D32: -2.75 | E32: 0.02639683645
A33: -2.74 | B33: 0.01029302867 | D33: -2.74 | E33: 0.02671279628
A34: -2.73 | B34: 0.01056083506 | D34: -2.73 | E34: 0.02703289604
A35: -2.72 | B35: 0.01083473398 | D35: -2.72 | E35: 0.02735719162
A36: -2.71 | B36: 0.01111483717 | D36: -2.71 | E36: 0.02768573964
A37: -2.7 | B37: 0.01140125761 | D37: -2.7 | E37: 0.02801859742
A38: -2.69 | B38: 0.01169410954 | D38: -2.69 | E38: 0.028355823
A39: -2.68 | B39: 0.01199350846 | D39: -2.68 | E39: 0.02869747513
A40: -2.67 | B40: 0.01229957107 | D40: -2.67 | E40: 0.02904361332
A41: -2.66 | B41: 0.01261241531 | D41: -2.66 | E41: 0.02939429778
A42: -2.65 | B42: 0.01293216031 | D42: -2.65 | E42: 0.02974958949
A43: -2.64 | B43: 0.01325892641 | D43: -2.64 | E43: 0.03010955016
A44: -2.63 | B44: 0.01359283511 | D44: -2.63 | E44: 0.03047424226
A45: -2.62 | B45: 0.01393400908 | D45: -2.62 | E45: 0.03084372902
A46: -2.61 | B46: 0.01428257214 | D46: -2.61 | E46: 0.03121807442
A47: -2.6 | B47: 0.01463864922 | D47: -2.6 | E47: 0.03159734323
A48: -2.59 | B48: 0.01500236638 | D48: -2.59 | E48: 0.03198160097
A49: -2.58 | B49: 0.01537385075 | D49: -2.58 | E49: 0.03237091396
A50: -2.57 | B50: 0.01575323053 | D50: -2.57 | E50: 0.03276534928
A51: -2.56 | B51: 0.01614063498 | D51: -2.56 | E51: 0.03316497483
A52: -2.55 | B52: 0.01653619438 | D52: -2.55 | E52: 0.03356985926
A53: -2.54 | B53: 0.01694003998 | D53: -2.54 | E53: 0.03398007206
A54: -2.53 | B54: 0.01735230403 | D54: -2.53 | E54: 0.03439568349
A55: -2.52 | B55: 0.01777311971 | D55: -2.52 | E55: 0.03481676463
A56: -2.51 | B56: 0.01820262114 | D56: -2.51 | E56: 0.03524338736
A57: -2.5 | B57: 0.01864094331 | D57: -2.5 | E57: 0.03567562437
A58: -2.49 | B58: 0.01908822207 | D58: -2.49 | E58: 0.03611354918
A59: -2.48 | B59: 0.0195445941 | D59: -2.48 | E59: 0.0365572361
A60: -2.47 | B60: 0.02001019687 | D60: -2.47 | E60: 0.0370067603
A61: -2.46 | B61: 0.02048516861 | D61: -2.46 | E61: 0.03746219774
A62: -2.45 | B62: 0.0209696483 | D62: -2.45 | E62: 0.03792362521
A63: -2.44 | B63: 0.02146377556 | D63: -2.44 | E63: 0.03839112034
A64: -2.43 | B64: 0.02196769071 | D64: -2.43 | E64: 0.03886476159
A65: -2.42 | B65: 0.02248153464 | D65: -2.42 | E65: 0.03934462822
A66: -2.41 | B66: 0.02300544884 | D66: -2.41 | E66: 0.03983080037
A67: -2.4 | B67: 0.02353957532 | D67: -2.4 | E67: 0.04032335895
A68: -2.39 | B68: 0.02408405657 | D68: -2.39 | E68: 0.04082238577
A69: -2.38 | B69: 0.02463903552 | D69: -2.38 | E69: 0.04132796341
A70: -2.37 | B70: 0.02520465551 | D70: -2.37 | E70: 0.04184017533
A71: -2.36 | B71: 0.02578106022 | D71: -2.36 | E71: 0.04235910578
A72: -2.35 | B72: =_xlfn.T.DIST(A72,B$2,0) -> 0.02636839361 | D72: =A72 -> -2.35 | E72: =_xlfn.T.DIST(D72,E$2,0) -> 0.04288483986
A73: -2.34 | B73: 0.02696679993 | D73: -2.34 | E73: 0.0434174635
A74: -2.33 | B74: 0.02757642358 | D74: -2.33 | E74: 0.04395706344
A75: -2.32 | B75: 0.02819740916 | D75: -2.32 | E75: 0.04450372725
A76: -2.31 | B76: 0.02882990131 | D76: -2.31 | E76: 0.04505754332
A77: -2.3 | B77: 0.02947404473 | D77: -2.3 | E77: 0.04561860085
A78: -2.29 | B78: 0.03012998409 | D78: -2.29 | E78: 0.04618698984
A79: -2.28 | B79: 0.03079786401 | D79: -2.28 | E79: 0.04676280112
A80: -2.27 | B80: 0.03147782892 | D80: -2.27 | E80: 0.0473461263
A81: -2.26 | B81: 0.03217002309 | D81: -2.26 | E81: 0.04793705779
A82: -2.25 | B82: 0.0328745905 | D82: -2.25 | E82: 0.04853568877
A83: -2.24 | B83: 0.03359167483 | D83: -2.24 | E83: 0.04914211324
A84: -2.23 | B84: 0.03432141934 | D84: -2.23 | E84: 0.04975642592
A85: -2.22 | B85: 0.03506396685 | D85: -2.22 | E85: 0.05037872233
A86: -2.21 | B86: 0.03581945965 | D86: -2.21 | E86: 0.05100909873
A87: -2.2 | B87: 0.03658803942 | D87: -2.2 | E87: 0.05164765213
A88: -2.19 | B88: 0.03736984719 | D88: -2.19 | E88: 0.05229448024
A89: -2.18 | B89: 0.03816502324 | D89: -2.18 | E89: 0.05294968154
A90: -2.17 | B90: 0.03897370705 | D90: -2.17 | E90: 0.05361335517
A91: -2.16 | B91: 0.0397960372 | D91: -2.16 | E91: 0.05428560099
A92: -2.15 | B92: 0.04063215131 | D92: -2.15 | E92: 0.05496651954
A93: -2.14 | B93: 0.04148218595 | D93: -2.14 | E93: 0.05565621201
A94: -2.13 | B94: 0.0423462766 | D94: -2.13 | E94: 0.05635478024
A95: -2.12 | B95: 0.04322455752 | D95: -2.12 | E95: 0.05706232672
A96: -2.11 | B96: 0.04411716168 | D96: -2.11 | E96: 0.05777895452
A97: -2.1 | B97: 0.04502422071 | D97: -2.1 | E97: 0.05850476733
A98: -2.09 | B98: 0.04594586479 | D98: -2.09 | E98: 0.05923986941
A99: -2.08 | B99: 0.04688222256 | D99: -2.08 | E99: 0.05998436555
A100: -2.07 | B100: 0.04783342104 | D100: -2.07 | E100: 0.06073836108
A101: -2.06 | B101: 0.04879958558 | D101: -2.06 | E101: 0.06150196186
A102: -2.05 | B102: 0.04978083969 | D102: -2.05 | E102: 0.0622752742
A103: -2.04 | B103: 0.05077730506 | D103: -2.04 | E103: 0.06305840487
A104: -2.03 | B104: 0.05178910135 | D104: -2.03 | E104: 0.06385146107
A105: -2.02 | B105: 0.05281634621 | D105: -2.02 | E105: 0.06465455042
A106: -2.01 | B106: 0.0538591551 | D106: -2.01 | E106: 0.06546778087
A107: -2 | B107: 0.05491764127 | D107: -2 | E107: 0.06629126074
A108: -1.99 | B108: 0.0559919156 | D108: -1.99 | E108: 0.06712509864
A109: -1.98 | B109: 0.05708208656 | D109: -1.98 | E109: 0.06796940346
A110: -1.97 | B110: 0.05818826008 | D110: -1.97 | E110: 0.06882428432
A111: -1.96 | B111: 0.05931053947 | D111: -1.96 | E111: 0.06968985054
A112: -1.95 | B112: 0.06044902533 | D112: -1.95 | E112: 0.07056621161
A113: -1.94 | B113: 0.06160381541 | D113: -1.94 | E113: 0.07145347713
A114: -1.93 | B114: 0.06277500459 | D114: -1.93 | E114: 0.07235175678
A115: -1.92 | B115: 0.06396268468 | D115: -1.92 | E115: 0.07326116028
A116: -1.91 | B116: 0.06516694443 | D116: -1.91 | E116: 0.07418179735
A117: -1.9 | B117: 0.06638786935 | D117: -1.9 | E117: 0.07511377763
A118: -1.89 | B118: 0.06762554162 | D118: -1.89 | E118: 0.07605721068
A119: -1.88 | B119: 0.06888004004 | D119: -1.88 | E119: 0.0770122059
A120: -1.87 | B120: 0.07015143987 | D120: -1.87 | E120: 0.07797887248
A121: -1.86 | B121: 0.07143981278 | D121: -1.86 | E121: 0.07895731935
A122: -1.85 | B122: 0.07274522669 | D122: -1.85 | E122: 0.07994765513
A123: -1.84 | B123: 0.07406774572 | D123: -1.84 | E123: 0.08094998806
A124: -1.83 | B124: 0.07540743007 | D124: -1.83 | E124: 0.08196442596
A125: -1.82 | B125: 0.07676433592 | D125: -1.82 | E125: 0.08299107614
A126: -1.81 | B126: 0.07813851532 | D126: -1.81 | E126: 0.08403004537
A127: -1.8 | B127: 0.0795300161 | D127: -1.8 | E127: 0.08508143977
A128: -1.79 | B128: 0.08093888177 | D128: -1.79 | E128: 0.08614536481
A129: -1.78 | B129: 0.0823651514 | D129: -1.78 | E129: 0.08722192515
A130: -1.77 | B130: 0.08380885955 | D130: -1.77 | E130: 0.08831122466
A131: -1.76 | B131: 0.08527003613 | D131: -1.76 | E131: 0.08941336628
A132: -1.75 | B132: 0.08674870636 | D132: -1.75 | E132: 0.09052845196
A133: -1.74 | B133: 0.08824489058 | D133: -1.74 | E133: 0.0916565826
A134: -1.73 | B134: 0.08975860426 | D134: -1.73 | E134: 0.09279785797
A135: -1.72 | B135: 0.09128985782 | D135: -1.72 | E135: 0.09395237657
A136: -1.71 | B136: =_xlfn.T.DIST(A136,B$2,0) -> 0.09283865655 | D136: =A136 -> -1.71 | E136: =_xlfn.T.DIST(D136,E$2,0) -> 0.09512023562
A137: -1.7 | B137: 0.09440500054 | D137: -1.7 | E137: 0.09630153093
A138: -1.69 | B138: 0.09598888457 | D138: -1.69 | E138: 0.09749635682
A139: -1.68 | B139: 0.097590298 | D139: -1.68 | E139: 0.09870480602
A140: -1.67 | B140: 0.09920922469 | D140: -1.67 | E140: 0.09992696958
A141: -1.66 | B141: 0.1008456429 | D141: -1.66 | E141: 0.1011629368
A142: -1.65 | B142: 0.1024995252 | D142: -1.65 | E142: 0.102412795
A143: -1.64 | B143: 0.1041708385 | D143: -1.64 | E143: 0.1036766296
A144: -1.63 | B144: 0.1058595436 | D144: -1.63 | E144: 0.104954524
A145: -1.62 | B145: 0.1075655956 | D145: -1.62 | E145: 0.1062465593
A146: -1.61 | B146: 0.1092889434 | D146: -1.61 | E146: 0.1075528143
A147: -1.6 | B147: 0.1110295299 | D147: -1.6 | E147: 0.1088733654
A148: -1.59 | B148: 0.1127872917 | D148: -1.59 | E148: 0.1102082864
A149: -1.58 | B149: 0.114562159 | D149: -1.58 | E149: 0.1115576486
A150: -1.57 | B150: 0.116354056 | D150: -1.57 | E150: 0.1129215205
A151: -1.56 | B151: 0.1181629001 | D151: -1.56 | E151: 0.1142999674
A152: -1.55 | B152: 0.1199886024 | D152: -1.55 | E152: 0.1156930521
A153: -1.54 | B153: 0.1218310674 | D153: -1.54 | E153: 0.1171008337
A154: -1.53 | B154: 0.1236901926 | D154: -1.53 | E154: 0.1185233685
A155: -1.52 | B155: 0.1255658693 | D155: -1.52 | E155: 0.119960709
A156: -1.51 | B156: 0.1274579817 | D156: -1.51 | E156: 0.1214129043
A157: -1.5 | B157: 0.1293664071 | D157: -1.5 | E157: 0.12288
A158: -1.49 | B158: 0.1312910161 | D158: -1.49 | E158: 0.1243620375
A159: -1.48 | B159: 0.1332316721 | D159: -1.48 | E159: 0.1258590546
A160: -1.47 | B160: 0.1351882315 | D160: -1.47 | E160: 0.1273710846
A161: -1.46 | B161: 0.1371605438 | D161: -1.46 | E161: 0.1288981568
A162: -1.45 | B162: 0.1391484512 | D162: -1.45 | E162: 0.1304402961
A163: -1.44 | B163: 0.1411517886 | D163: -1.44 | E163: 0.1319975225
A164: -1.43 | B164: 0.143170384 | D164: -1.43 | E164: 0.1335698518
A165: -1.42 | B165: 0.1452040578 | D165: -1.42 | E165: 0.1351572945
A166: -1.41 | B166: 0.1472526232 | D166: -1.41 | E166: 0.1367598561
A167: -1.4 | B167: 0.1493158862 | D167: -1.4 | E167: 0.1383775371
A168: -1.39 | B168: 0.1513936452 | D168: -1.39 | E168: 0.1400103326
A169: -1.38 | B169: 0.1534856912 | D169: -1.38 | E169: 0.141658232
A170: -1.37 | B170: 0.155591808 | D170: -1.37 | E170: 0.1433212191
A171: -1.36 | B171: 0.1577117717 | D171: -1.36 | E171: 0.144999272
A172: -1.35 | B172: 0.1598453511 | D172: -1.35 | E172: 0.1466923625
A173: -1.34 | B173: 0.1619923073 | D173: -1.34 | E173: 0.1484004564
A174: -1.33 | B174: 0.1641523941 | D174: -1.33 | E174: 0.1501235131
A175: -1.32 | B175: 0.1663253577 | D175: -1.32 | E175: 0.1518614854
A176: -1.31 | B176: 0.1685109367 | D176: -1.31 | E176: 0.1536143195
A177: -1.3 | B177: 0.1707088624 | D177: -1.3 | E177: 0.1553819545
A178: -1.29 | B178: 0.1729188585 | D178: -1.29 | E178: 0.1571643228
A179: -1.28 | B179: 0.175140641 | D179: -1.28 | E179: 0.1589613491
A180: -1.27 | B180: 0.1773739188 | D180: -1.27 | E180: 0.1607729512
A181: -1.26 | B181: 0.179618393 | D181: -1.26 | E181: 0.162599039
A182: -1.25 | B182: 0.1818737573 | D182: -1.25 | E182: 0.1644395146
A183: -1.24 | B183: 0.1841396982 | D183: -1.24 | E183: 0.1662942724
A184: -1.23 | B184: 0.1864158945 | D184: -1.23 | E184: 0.1681631985
A185: -1.22 | B185: 0.1887020178 | D185: -1.22 | E185: 0.1700461709
A186: -1.21 | B186: 0.1909977323 | D186: -1.21 | E186: 0.171943059
A187: -1.2 | B187: 0.1933026951 | D187: -1.2 | E187: 0.1738537236
A188: -1.19 | B188: 0.1956165557 | D188: -1.19 | E188: 0.1757780168
A189: -1.18 | B189: 0.1979389567 | D189: -1.18 | E189: 0.1777157816
A190: -1.17 | B190: 0.2002695336 | D190: -1.17 | E190: 0.1796668521
A191: -1.16 | B191: 0.2026079145 | D191: -1.16 | E191: 0.1816310528
A192: -1.15 | B192: 0.2049537208 | D192: -1.15 | E192: 0.183608199
A193: -1.14 | B193: 0.2073065668 | D193: -1.14 | E193: 0.1855980964
A194: -1.13 | B194: 0.20966606 | D194: -1.13 | E194: 0.1876005407
A195: -1.12 | B195: 0.212031801 | D195: -1.12 | E195: 0.1896153178
A196: -1.11 | B196: 0.2144033838 | D196: -1.11 | E196: 0.1916422037
A197: -1.1 | B197: 0.2167803956 | D197: -1.1 | E197: 0.1936809639
A198: -1.09 | B198: 0.2191624174 | D198: -1.09 | E198: 0.1957313538
A199: -1.08 | B199: 0.2215490233 | D199: -1.08 | E199: 0.1977931181
A200: -1.07 | B200: =_xlfn.T.DIST(A200,B$2,0) -> 0.2239397814 | D200: =A200 -> -1.07 | E200: =_xlfn.T.DIST(D200,E$2,0) -> 0.199865991
A201: -1.06 | B201: 0.2263342535 | D201: -1.06 | E201: 0.2019496959
... 406 more rows

Sheet Sigma Not Known
A1: Sample # Pages From Cartridge | C1: Printers Manufacturers is a manufacturer of computer printers and printer
A2: 1907 | C2: cartridges. They would like to create an ad that says how many pages a
A3: 2501 | C3: customer could expect from the cartridge.
A4: 2258 | C4: Something like: "A customer can expect an average of XXX within the margin
A5: 2410 | C5: of error of XXX."
A6: 2942
A7: 2455 | C7: X bar (pages) | G7: =ROUND(AVERAGE(A2:A11),0)
A8: 2058 | C8: s (pages) | G8: =ROUND(STDEV.S(A2:A11),0)
A9: 2298 | C9: n | G9: =COUNT(A2:A11)
A10: 2751 | C10: # of samples | D10: 1
A11: 2508 | C11: df | G11: =D9-D10
C12: Standard Error | G12: =D8/SQRT(D9)
C13: Confidence Level | D13: 0.95
C14: Alpha | G14: =1-D13
C15: Alpha/2 | G15: =D14/2
C16: t | G16: =T.INV(1-D15,D11)
C17: Margin of error | F17: Method 1 | G17: =D16*D12
C18: Margin of error | F18: Method 2 | G18: =CONFIDENCE.T(D14,D8,D9)
C19: lower Xbar | G19: =$D$7-$D$18
C20: upper Xbar | G20: =$D$7+$D$18
F22: Method 3

Sheet Sigma Not Known(an)
A1: Sample # Pages From Cartridge | C1: Printers Manufacturers is a manufacturer of computer printers and printer
A2: 1907 | C2: cartridges. They would like to create an ad that says how many pages a
A3: 2501 | C3: customer could expect from the cartridge.
A4: 2258 | C4: Something like: "A customer can expect an average of XXX within the margin
A5: 2410 | C5: of error of XXX."
A6: 2942
A7: 2455 | C7: X bar (pages) | D7: =ROUND(AVERAGE(A2:A11),0) -> 2409 | G7: =ROUND(AVERAGE(A2:A11),0)
A8: 2058 | C8: s (pages) | D8: =ROUND(_xlfn.STDEV.S(A2:A11),0) -> 304 | G8: =ROUND(STDEV.S(A2:A11),0)
A9: 2298 | C9: n | D9: =COUNT(A2:A11) -> 10 | G9: =COUNT(A2:A11)
A10: 2751 | C10: # of samples | D10: 1
A11: 2508 | C11: df | D11: =D9-D10 -> 9 | G11: =D9-D10
C12: Standard Error | D12: =D8/SQRT(D9) -> 96.13324087 | G12: =D8/SQRT(D9)
C13: Confidence Level | D13: 0.95
C14: Alpha | D14: =1-D13 -> 0.05 | G14: =1-D13
C15: Alpha/2 | D15: =D14/2 -> 0.025 | G15: =D14/2
C16: t | D16: =_xlfn.T.INV(1-D15,D11) -> 2.262157163 | G16: =T.INV(1-D15,D11)
C17: Margin of error | D17: =ROUND(D12*D16,0) -> 217 | F17: Method 1 | G17: =D16*D12
C18: Margin of error | D18: =ROUND(_xlfn.CONFIDENCE.T(D14,D8,D9),0) -> 217 | F18: Method 2 | G18: =CONFIDENCE.T(D14,D8,D9)
C19: lower Xbar | D19: =D7-D17 -> 2192 | G19: =$D$7-$D$18
C20: upper Xbar | D20: =D7+D18 -> 2626 | G20: =$D$7+$D$18
F22: Method 3
C23: Sample # Pages From Cartridge
C25: Mean | D25: 2408.8
C26: Standard Error | D26: 96.13425797
C27: Median | D27: 2432.5
C28: Mode
C29: Standard Deviation | D29: 304.0032164
C30: Sample Variance | D30: 92417.95556
C31: Kurtosis | D31: 0.1052419625
C32: Skewness | D32: 0.09494632226
C33: Range | D33: 1035
C34: Minimum | D34: 1907
C35: Maximum | D35: 2942
C36: Sum | D36: 24088
C37: Count | D37: 10
C38: Confidence Level(95.0%) | D38: 217.4708003
C40: Lower Limit | D40: =D25-D38 -> 2191.3292
C41: Upper Limit | D41: =D25+D38 -> 2626.2708
C43: A customer can expect an average of 2409 pages within the margin
C44: of error of 217 pages

Sheet T(2)
A1: Restaurant Magazine wants to rate a particular restaurant. They go out and ask 50 randomly selected customers to give
A2: a rating between 1 and 10 so they can estimate the population mean rating.
A4: 1-10 Rating of Resturant | C4: n | E4: =COUNT(A5:A54)
A5: 6 | C5: df | E5: =D4-1 | F5: Degrees of Freedom = n - # of samples
A6: 10 | C6: Xbar | E6: =AVERAGE(A5:A54)
A7: 4 | C7: s | E7: =STDEV.S(A5:A54)
A8: 10 | C8: Standard Error of Mean =s/SQRT(n) | E8: =D7/SQRT(D4) | F8: SE = Standard Deviation of Sampling Distribution of Xbar
A9: 5 | C9: Confidence Level | D9: 0.95 | F9: How sure we are that pop mean is in interval
A10: 2 | C10: Alpha | E10: =1-D9 | F10: How sure we are that pop mean is NOT in interval. Risk we take that Pop Mean is not in interval
A11: 8 | C11: Alpha/2 | E11: =D10/2 | F11: Prob. In upper or lower tail
A12: 3
A13: 2 | C13: Method 1:
A14: 7 | C14: T.INV Method
A15: 5 | C15: Upper t | E15: =T.INV(1-D11,D5) | G15: =T.INV(1-alpha/2,df)
A16: 6 | C16: Margin of Error | E16: =D15*D8 | G16: =t * SE
A17: 8 | C17: Lower Limit | E17: =D6-D16 | G17: =Xbar - Margin of Error
A18: 2 | C18: Upper Limit | E18: =D6+D16 | G18: =Xbar + Margin of Error
A19: 8
A20: 7 | C20: Method 2:
A21: 6 | C21: CONFIDENCE.T Method
A22: 8 | C22: Margin of Error | E22: =CONFIDENCE.T(D10,D7,D4) | G22: =CONFIDENCE.T(alpha,s,n)
A23: 9 | C23: Lower Limit | E23: =D6-D22 | G23: =Xbar - Margin of Error
A24: 7 | C24: Upper Limit | E24: =D6+D22 | G24: =Xbar + Margin of Error
A25: 2
A26: 9 | C26: Method 3:
A27: 9 | C27: Data Analysis, Descriptive Statistics Method | G27: Data Ribbon Tab, Analysis Group, Data Analysis button, Descriptive Statistics
A28: 6
A29: 5 | C29: 1-10 Rating of Resturant
A30: 8
A31: 2 | C31: Mean | D31: 5.98
A32: 5 | C32: Standard Error | D32: 0.3574170376
A33: 3 | C33: Median | D33: 6
A34: 9 | C34: Mode | D34: 2
A35: 8 | C35: Standard Deviation | D35: 2.52732011
A36: 9 | C36: Sample Variance | D36: 6.387346939
A37: 9 | C37: Kurtosis | D37: -1.072805558
A38: 6 | C38: Skewness | D38: -0.3084447536
A39: 5 | C39: Range | D39: 8
A40: 2 | C40: Minimum | D40: 2
A41: 5 | C41: Maximum | D41: 10
A42: 6 | C42: Sum | D42: 299
A43: 9 | C43: Count | D43: 50
A44: 7 | C44: Confidence Level(95.0%) | D44: 0.7182564281
A45: 9 | C45: Lower Limit | D45: =D31-D44 -> 5.261743572 | E45: =D30-D43 | G45: =Xbar - Margin of Error
A46: 7 | C46: Upper Limit | D46: =D31+D44 -> 6.698256428 | E46: =D30+D43 | G46: =Xbar + Margin of Error
A47: 2 | C47: ="Our "&TEXT($D$9,"0%")&" Confidence Interval has limits of "&ROUND(D45,1)&" and "&ROUND(D46,1)&". We are about "&TEXT($D$9,"0%")&" sure that the population mean will lie within this interval. We are about "&TEXT(1-$D$9,"0%")&" sure that the population mean will NOT lie within this interval. " -> Our 95% Confidence Interval has limits of 5.3 and 6.7. We are about 95% sure that the population mean will lie within this interval. We are about 5% sure that the population mean will NOT lie within this interval.
A48: 2 | C48: ="If we were to construct 100 similar intervals we would expect "&D9*100&" to contain the population mean and "&(1-D9)*100&" to NOT contain the population mean." -> If we were to construct 100 similar intervals we would expect 95 to contain the population mean and 5 to NOT contain the population mean.
A49: 7 | C49: ="We estimate the population mean for rating is about "&ROUND(D6,1)&" with a margin of error of +/- "&ROUND(D43,1)&"." -> We estimate the population mean for rating is about 0 with a margin of error of +/- 50.
A50: 5 | C50: ="A reasonable range of values for the population mean is "&ROUND(D45,1)&" to "&ROUND(D46,1)&"." -> A reasonable range of values for the population mean is 5.3 to 6.7.
A51: 4 | C51: ="We are "&TEXT($D$9,"0%")&" sure that the pop mean for the resturant rating is between "&ROUND(D45,1)&" and "&ROUND(D46,1)&"." -> We are 95% sure that the pop mean for the resturant rating is between 5.3 and 6.7.
A52: 7
A53: 2
A54: 7

Sheet T(2an)
A1: Restaurant Magazine wants to rate a particular restaurant. They go out and ask 50 randomly selected customers to give
A2: a rating between 1 and 10 so they can estimate the population mean rating.
A4: 1-10 Rating of Resturant | C4: n | D4: =COUNT(A5:A54) -> 50 | E4: =COUNT(A5:A54)
A5: 6 | C5: df | D5: =D4-1 -> 49 | E5: =D4-1 | F5: Degrees of Freedom = n - # of samples
A6: 10 | C6: Xbar | D6: =AVERAGE(A5:A54) -> 5.98 | E6: =AVERAGE(A5:A54)
A7: 4 | C7: s | D7: =_xlfn.STDEV.S(A5:A54) -> 2.52732011 | E7: =STDEV.S(A5:A54)
A8: 10 | C8: Standard Error of Mean =s/SQRT(n) | D8: =D7/SQRT(D4) -> 0.3574170376 | E8: =D7/SQRT(D4) | F8: SE = Standard Deviation of Sampling Distribution of Xbar
A9: 5 | C9: Confidence Level | D9: 0.95 | F9: How sure we are that pop mean is in interval
A10: 2 | C10: Alpha | D10: =1-D9 -> 0.05 | E10: =1-D9 | F10: How sure we are that pop mean is NOT in interval. Risk we take that Pop Mean is not in interval
A11: 8 | C11: Alpha/2 | D11: =D10/2 -> 0.025 | E11: =D10/2 | F11: Prob. In upper or lower tail
A12: 3
A13: 2 | C13: Method 1:
A14: 7 | C14: T.INV Method
A15: 5 | C15: Upper t | D15: =_xlfn.T.INV(1-D11,D5) -> 2.009575237 | E15: =T.INV(1-D11,D5) | G15: =T.INV(1-alpha/2,df)
A16: 6 | C16: Margin of Error | D16: =D15*D8 -> 0.7182564281 | E16: =D15*D8 | G16: =t * SE
A17: 8 | C17: Lower Limit | D17: =D6-D16 -> 5.261743572 | E17: =D6-D16 | G17: =Xbar - Margin of Error
A18: 2 | C18: Upper Limit | D18: =D6+D16 -> 6.698256428 | E18: =D6+D16 | G18: =Xbar + Margin of Error
A19: 8
A20: 7 | C20: Method 2:
A21: 6 | C21: CONFIDENCE.T Method
A22: 8 | C22: Margin of Error | D22: =_xlfn.CONFIDENCE.T(D10,D7,D4) -> 0.7182564281 | E22: =CONFIDENCE.T(D10,D7,D4) | G22: =CONFIDENCE.T(alpha,s,n)
A23: 9 | C23: Lower Limit | D23: =D6-D22 -> 5.261743572 | E23: =D6-D22 | G23: =Xbar - Margin of Error
A24: 7 | C24: Upper Limit | D24: =D6+D22 -> 6.698256428 | E24: =D6+D22 | G24: =Xbar + Margin of Error
A25: 2
A26: 9 | C26: Method 3:
A27: 9 | C27: Data Analysis, Descriptive Statistics Method | G27: Data Ribbon Tab, Analysis Group, Data Analysis button, Descriptive Statistics
A28: 6 | C28: 1-10 Rating of Resturant
A29: 5
A30: 8 | C30: Mean | D30: 5.98
A31: 2 | C31: Standard Error | D31: 0.3574170376
A32: 5 | C32: Median | D32: 6
A33: 3 | C33: Mode | D33: 2
A34: 9 | C34: Standard Deviation | D34: 2.52732011
A35: 8 | C35: Sample Variance | D35: 6.387346939
A36: 9 | C36: Kurtosis | D36: -1.072805558
A37: 9 | C37: Skewness | D37: -0.3084447536
A38: 6 | C38: Range | D38: 8
A39: 5 | C39: Minimum | D39: 2
A40: 2 | C40: Maximum | D40: 10
A41: 5 | C41: Sum | D41: 299
A42: 6 | C42: Count | D42: 50
A43: 9 | C43: Confidence Level(95.0%) | D43: 0.7182564281
A44: 7
A45: 9 | C45: Lower Limit | D45: =D30-D43 -> 5.261743572 | E45: =D30-D43 | G45: =Xbar - Margin of Error
A46: 7 | C46: Upper Limit | D46: =D30+D43 -> 6.698256428 | E46: =D30+D43 | G46: =Xbar + Margin of Error
A47: 2 | C47: ="Our "&TEXT($D$9,"0%")&" Confidence Interval has limits of "&ROUND(D45,1)&" and "&ROUND(D46,1)&". We are about "&TEXT($D$9,"0%")&" sure that the population mean will lie within this interval. We are about "&TEXT(1-$D$9,"0%")&" sure that the population mean will NOT lie within this interval. " -> Our 95% Confidence Interval has limits of 5.3 and 6.7. We are about 95% sure that the population mean will lie within this interval. We are about 5% sure that the population mean will NOT lie within this interval.
A48: 2 | C48: ="If we were to construct 100 similar intervals we would expect "&D9*100&" to contain the population mean and "&(1-D9)*100&" to NOT contain the population mean." -> If we were to construct 100 similar intervals we would expect 95 to contain the population mean and 5 to NOT contain the population mean.
A49: 7 | C49: ="We estimate the population mean for rating is about "&ROUND(D6,1)&" with a margin of error of +/- "&ROUND(D43,1)&"." -> We estimate the population mean for rating is about 6 with a margin of error of +/- 0.7.
A50: 5 | C50: ="A reasonable range of values for the population mean is "&ROUND(D45,1)&" to "&ROUND(D46,1)&"." -> A reasonable range of values for the population mean is 5.3 to 6.7.
A51: 4 | C51: ="We are "&TEXT($D$9,"0%")&" sure that the pop mean for the resturant rating is between "&ROUND(D45,1)&" and "&ROUND(D46,1)&"." -> We are 95% sure that the pop mean for the resturant rating is between 5.3 and 6.7.
A52: 7
A53: 2
A54: 7

Sheet Pbar(1)
A1: Binomial Tests
A2: Experiment consists of a sequence of n identical trials. Random Variable counts the number of successes in a Fixed number of trials, n. - Fixed # of Identical Trials = n | F2: Yes
A3: Only 2 outcomes are possible on each identical trial. Success or Failure. - Each trial only results in S or F | F3: Yes
A4: Probability of Success = p = (π "pi"). Probability of Failure = 1-p. Probability remains the same on each trial. - p remains the same for each trial | F4: Yes
A5: The trials are independent (one does not affect the next) - All events are independent | F5: Yes
A7: A large Seattle Coffee Company says that Excel skills are important for the 600 + employees that work in the Marketing and Accounting Department. A sample of potential employees who said they were knowledgeable with Excel is below.
A9: Response | C9: Sample Size = n | H9: =COUNTA(A10:A1109)
A10: No | C10: ="Count of "&E10 -> Count of Yes | E10: Yes | H10: =COUNTIF($A$10:$A$1109,F10)
A11: Yes | C11: ="Count of "&E11 -> Count of No | E11: No | H11: =COUNTIF($A$10:$A$1109,F11)
A12: No | C12: ="P("&E10&")" -> P(Yes) | E12: sample proportion = Point Estimate | F12: Pbar | G12: Proportion of potential employees who say they know Excel well | H12: =D10/$D$9
A13: No | C13: ="P("&E11&")" -> P(No) | H13: =D11/$D$9
A14: Yes | C14: n*p>5 | E14: =IF(D14="","",D14>5) ->  | F14: Can we use Normal Curve? | H14: =D9*D12
A15: No | C15: n*(1-p)>5 | E15: =IF(D15="","",D15>5) ->  | H15: =D9*D13
A16: No | C16: Confidence Level | D16: 0.95 | H16: 0.95
A17: No | C17: Significance Level | E17: alpha | H17: =1-D16
A18: No | C18: alpha/2 | H18: =D17/2
A19: Yes | C19: z upper | F19: Method 2 | H19: =NORM.S.INV(1-D18)
A20: Yes | C20: Standard Error | E20: SQRT(p*(1-p)/n) | H20: =SQRT(D12*D13/D9)
A21: No | C21: Margin of error | H21: =D20*D19
A22: Yes | C22: Lower Limit | H22: =$D$12-$D$21
A23: No | C23: Upper Limit | H23: =$D$12+$D$21
A24: Yes | C24: Conclusion:
A25: No | C25: =IF(D23="","","The "&TEXT(D16,"0.00%")&" confidence interval for the "&LOWER(G12)&" is "&TEXT(D22,"0.0000")&" to "&TEXT(D23,"0.0000")&".") -> 
A26: Yes | C26: =IF(D23="","","So, since this company hires people on the spot if they know their field and they know Excel, be sure to study both in school!") -> 
A27: No
A28: No
A29: Yes
A30: No
A31: No
A32: Yes
A33: No
A34: No
A35: Yes
A36: Yes
A37: Yes
A38: No
A39: Yes
A40: No
A41: No
A42: No
A43: No
A44: No
A45: No
A46: Yes
A47: No
A48: No
A49: No
A50: No
A51: No
A52: No
A53: No
A54: No
A55: No
A56: No
A57: Yes
A58: No
A59: No
A60: Yes
A61: Yes
A62: Yes
A63: Yes
A64: No
A65: No
A66: Yes
A67: Yes
A68: No
A69: No
A70: No
A71: No
A72: Yes
A73: No
A74: No
A75: Yes
A76: No
A77: No
A78: No
A79: Yes
A80: No
A81: Yes
A82: Yes
A83: Yes
A84: No
A85: Yes
A86: No
A87: No
A88: No
A89: No
A90: No
A91: Yes
A92: Yes
A93: No
A94: Yes
A95: No
A96: Yes
A97: No
A98: No
A99: No
A100: No
A101: Yes
A102: No
A103: No
A104: Yes
A105: Yes
A106: Yes
A107: No
A108: No
A109: Yes
A110: No
A111: No
A112: Yes
A113: Yes
A114: No
A115: No
A116: Yes
A117: Yes
A118: No
A119: Yes
A120: No
A121: No
A122: Yes
A123: No
A124: No
A125: Yes
A126: No
A127: No
A128: No
A129: No
A130: Yes
A131: No
A132: Yes
A133: No
A134: No
A135: No
A136: Yes
A137: Yes
A138: Yes
A139: No
A140: Yes
A141: No
A142: No
A143: No
A144: No
A145: No
A146: Yes
A147: Yes
A148: Yes
A149: No
A150: No
A151: No
A152: Yes
A153: Yes
A154: No
A155: Yes
A156: Yes
A157: No
A158: No
A159: No
A160: No
A161: Yes
A162: No
A163: No
A164: No
A165: No
A166: Yes
A167: No
A168: Yes
A169: No
A170: No
A171: No
A172: No
A173: No
A174: No
A175: Yes
A176: No
A177: Yes
A178: No
A179: Yes
A180: No
A181: Yes
A182: No
A183: No
A184: No
A185: No
A186: No
A187: No
A188: No
A189: Yes
A190: No
A191: Yes
A192: No
A193: Yes
A194: Yes
A195: Yes
A196: No
A197: No
A198: No
A199: No
A200: No
A201: No
A202: Yes
... 907 more rows

Sheet Pbar(1an)
A1: Binomial Tests
A2: Experiment consists of a sequence of n identical trials. Random Variable counts the number of successes in a Fixed number of trials, n. - Fixed # of Identical Trials = n | F2: Yes
A3: Only 2 outcomes are possible on each identical trial. Success or Failure. - Each trial only results in S or F | F3: Yes
A4: Probability of Success = p = (π "pi"). Probability of Failure = 1-p. Probability remains the same on each trial. - p remains the same for each trial | F4: Yes
A5: The trials are independent (one does not affect the next) - All events are independent | F5: Yes
A7: A large Seattle Coffee Company says that Excel skills are important for the 600 + employees that work in the Marketing and Accounting Department. A sample of potential employees who said they were knowledgeable with Excel is below.
A9: Response | C9: Sample Size = n | D9: =COUNTA(A10:A1109) -> 1100 | I9: =COUNTA(A10:A1109)
A10: No | C10: ="Count of "&E10 -> Count of Yes | D10: =COUNTIF($A$10:$A$1109,E10) -> 354 | E10: Yes | I10: =COUNTIF($A$10:$A$1109,F10)
A11: Yes | C11: ="Count of "&E11 -> Count of No | D11: =COUNTIF($A$10:$A$1109,E11) -> 746 | E11: No | I11: =COUNTIF($A$10:$A$1109,F11)
A12: No | C12: ="P("&E10&")" -> P(Yes) | D12: =D10/$D$9 -> 0.3218181818 | E12: sample proportion = Point Estimate | F12: p | G12: Proportion of potential employees who know Excel well | I12: =D10/$D$9
A13: No | C13: ="P("&E11&")" -> P(No) | D13: 0.6781818182 | I13: =D11/$D$9
A14: Yes | C14: n*p>5 | D14: =D9*D12 -> 354 | E14: =IF(D14="","",D14>5) -> TRUE | F14: Can we use Normal Curve? | I14: =D9*D12
A15: No | C15: n*(1-p)>5 | D15: =D9*D13 -> 746 | E15: =IF(D15="","",D15>5) -> TRUE | I15: =D9*D13
A16: No | C16: Confidence Level | D16: 0.95 | I16: 0.95
A17: No | C17: Significance Level | D17: =1-D16 -> 0.05 | E17: alpha | I17: =1-D16
A18: No | C18: alpha/2 | D18: =D17/2 -> 0.025 | I18: =D17/2
A19: Yes | C19: z upper | D19: =_xlfn.NORM.S.INV(1-D18) -> 1.959963985 | F19: Method 2 | I19: =NORM.S.INV(1-D18)
A20: Yes | C20: Standard Error | D20: =SQRT(D12*D13/D9) -> 0.0140858162 | E20: SQRT(p*(1-p)/n) | I20: =SQRT(D12*D13/D9)
A21: No | C21: Margin of error | D21: =D20*D19 -> 0.02760769244 | I21: =D20*D19
A22: Yes | C22: Lower Limit | D22: =$D$12-$D$21 -> 0.2942104894 | I22: =$D$12-$D$21
A23: No | C23: Upper Limit | D23: =$D$12+$D$21 -> 0.3494258743 | I23: =$D$12+$D$21
A24: Yes | C24: Conclusion:
A25: No | C25: =IF(D23="","","The "&TEXT(D16,"0.00%")&" confidence interval for the "&LOWER(G12)&" is "&TEXT(D22,"0.0000")&" to "&TEXT(D23,"0.0000")&".") -> The 95.00% confidence interval for the proportion of potential employees who know excel well is 0.2942 to 0.3494.
A26: Yes | C26: So, since this company hires people on the spot if they know their field and they know Excel, be sure to study both in school!
A27: No
A28: No
A29: Yes
A30: No
A31: No
A32: Yes
A33: No
A34: No
A35: Yes
A36: Yes
A37: Yes
A38: No
A39: Yes
A40: No
A41: No
A42: No
A43: No
A44: No
A45: No
A46: Yes
A47: No
A48: No
A49: No
A50: No
A51: No
A52: No
A53: No
A54: No
A55: No
A56: No
A57: Yes
A58: No
A59: No
A60: Yes
A61: Yes
A62: Yes
A63: Yes
A64: No
A65: No
A66: Yes
A67: Yes
A68: No
A69: No
A70: No
A71: No
A72: Yes
A73: No
A74: No
A75: Yes
A76: No
A77: No
A78: No
A79: Yes
A80: No
A81: Yes
A82: Yes
A83: Yes
A84: No
A85: Yes
A86: No
A87: No
A88: No
A89: No
A90: No
A91: Yes
A92: Yes
A93: No
A94: Yes
A95: No
A96: Yes
A97: No
A98: No
A99: No
A100: No
A101: Yes
A102: No
A103: No
A104: Yes
A105: Yes
A106: Yes
A107: No
A108: No
A109: Yes
A110: No
A111: No
A112: Yes
A113: Yes
A114: No
A115: No
A116: Yes
A117: Yes
A118: No
A119: Yes
A120: No
A121: No
A122: Yes
A123: No
A124: No
A125: Yes
A126: No
A127: No
A128: No
A129: No
A130: Yes
A131: No
A132: Yes
A133: No
A134: No
A135: No
A136: Yes
A137: Yes
A138: Yes
A139: No
A140: Yes
A141: No
A142: No
A143: No
A144: No
A145: No
A146: Yes
A147: Yes
A148: Yes
A149: No
A150: No
A151: No
A152: Yes
A153: Yes
A154: No
A155: Yes
A156: Yes
A157: No
A158: No
A159: No
A160: No
A161: Yes
A162: No
A163: No
A164: No
A165: No
A166: Yes
A167: No
A168: Yes
A169: No
A170: No
A171: No
A172: No
A173: No
A174: No
A175: Yes
A176: No
A177: Yes
A178: No
A179: Yes
A180: No
A181: Yes
A182: No
A183: No
A184: No
A185: No
A186: No
A187: No
A188: No
A189: Yes
A190: No
A191: Yes
A192: No
A193: Yes
A194: Yes
A195: Yes
A196: No
A197: No
A198: No
A199: No
A200: No
A201: No
A202: Yes
... 907 more rows

Sheet Pbar(2)
A1: Furniture Land South surveyed their customers (n = 600) to see if they liked the new line of durable foam furniture decorated in bright colors. 414 said they were excited about the new line. All the binomial tests are met.
A3: 1 | B3: List Variables:
B4: x = # of successes = | C4: 414
B5: n = sample size = | C5: 600
B6: Pbar = sample proportion = x/n = | E6: =C4/C5
A8: 2 | B8: What is the best estimation for the population proportion?
B9: =IF(C6="","","Our sample proportion is the best estimate for the population proportion ==> p = "&C6) -> 
A11: 3 | B11: Determine a 99% Confidence Interval: State the level of confidence, find z, and calculate the confidence intervals.
B12: Level of Confidence = | C12: 0.99
B13: Alpha = Risk that population proportion is not in our interval = | E13: =1-C12
B14: Alpha/2 = | E14: =C13/2
B15: z = | E15: =NORM.S.INV(1-C14)
B16: Standard Error | E16: =SQRT(C6*(1-C6)/C5)
B17: Margin of error | E17: =C16*C15
B18: Xbar lower end = | E18: =C6-C17
B19: Xbar upper end = | E19: =C6+C17
A21: 4 | B21: Conclusions
B22: =IF(C19="","","The owner can be "&TEXT(C12,"0.00%")&" sure that the population proportion (% of customers excited about the new product) is between "&TEXT(C18,"0.00%")&" and "&TEXT(C19,"0.00%")&".") -> 
B23: =IF(C19="","","The margin of error is "&TEXT(C17,"0.00%")&".") -> 
B24: =IF(C19="","","If 100 similar intervals were constructed about "&C12*100&" intervals would contain the population proportion.") -> 

Sheet Pbar(2an)
A1: Furniture Land South surveyed their customers (n = 600) to see if they liked the new line of durable foam furniture decorated in bright colors. 414 said they were excited about the new line. All the binomial tests are met.
A3: 1 | B3: List Variables:
B4: x = # of successes = | C4: 414
B5: n = sample size = | C5: 600
B6: p = sample proportion = x/n = | C6: =C4/C5 -> 0.69 | E6: =C4/C5
A8: 2 | B8: What is the best estimation for the population proportion?
B9: ="Our sample proportion is the best estimate for the population proportion ==> p = "&C6 -> Our sample proportion is the best estimate for the population proportion ==> p = 0.69
A11: 3 | B11: Determine a 99% Confidence Interval: State the level of confidence, find z, and calculate the confidence intervals.
B12: Level of Confidence = | C12: 0.99
B13: Alpha = Risk that population proportion is not in our interval = | C13: =1-C12 -> 0.01 | E13: =1-C12
B14: Alpha/2 = | C14: =C13/2 -> 0.005 | E14: =C13/2
B15: z = | C15: =_xlfn.NORM.S.INV(1-C14) -> 2.575829304 | E15: =NORMSINV(1-C14)
B16: Standard Error | C16: =SQRT(C6*(1-C6)/C5) -> 0.01888120759 | E16: =SQRT(C6*(1-C6)/C5)
B17: Margin of error | C17: =C15*C16 -> 0.04863476779 | E17: =C16*C15
B18: Xbar lower end = | C18: =$C$6-$C$17 -> 0.6413652322 | E18: =C6-C17
B19: Xbar upper end = | C19: =$C$6+$C$17 -> 0.7386347678 | E19: =C6+C17
A21: 4 | B21: Conclusions
B22: ="The owner can be "&TEXT(C12,"0.00%")&" sure that the population proportion (% of customers excited about the new product) is between "&TEXT(C18,"0.00%")&" and "&TEXT(C19,"0.00%")&"." -> The owner can be 99.00% sure that the population proportion (% of customers excited about the new product) is between 64.14% and 73.86%.
B23: ="The margin of error is "&TEXT(C17,"0.00%")&"." -> The margin of error is 4.86%.
B24: ="If 100 similar intervals were constructed about "&C12*100&" intervals would contain the population proportion." -> If 100 similar intervals were constructed about 99 intervals would contain the population proportion.

Sheet Sample Size
A1: Error = | B1: 5
A2: Est. sigma | B2: 20
A3: Level of confidence = | B3: 0.99
A4: Alpha = Risk that pop. Mean, mu, is not in our interval =
A5: Alpha/2 =
A6: z = | C6: =NORM.S.INV(1-B5)
A7: Sample size estimate = | C7: =(B6*B2/B1)^2
A8: sample size = | C8: =ROUNDUP(B7,0)
A20: ERROR = | B20: 0.03
A21: p = | B21: 0.3
A22: Level of confidence = | B22: 0.95
A23: Alpha = Risk that population proportion is not in our interval =
A24: Alpha/2 =
A25: z = | C25: =NORM.S.INV(1-B24)
A26: Sample size estimate = | C26: =B21*(1-B21)*(B25/B20)^2
A27: sample size = | C27: =ROUNDUP(B26,0)

Sheet Sample Size(an)
A1: Error = | B1: 5
A2: Est. sigma | B2: 20
A3: Level of confidence = | B3: 0.99
A4: Alpha = Risk that pop. Mean, mu, is not in our interval = | B4: =1-B3 -> 0.01
A5: Alpha/2 = | B5: =B4/2 -> 0.005
A6: z = | B6: =_xlfn.NORM.S.INV(1-B5) -> 2.575829304 | C6: =NORM.S.INV(1-B5)
A7: Sample size estimate = | B7: =(B6*B2/B1)^2 -> 106.1583456 | C7: =(B6*B2/B1)^2
A8: sample size = | B8: =ROUNDUP(B7,0) -> 107 | C8: =ROUNDUP(B7,0)
A20: ERROR = | B20: 0.03
A21: p = | B21: 0.3
A22: Level of confidence = | B22: 0.95
A23: Alpha = Risk that population proportion is not in our interval = | B23: =1-B22 -> 0.05
A24: Alpha/2 = | B24: =B23/2 -> 0.025
A25: z = | B25: =_xlfn.NORM.S.INV(1-B24) -> 1.959963985 | C25: =NORM.S.INV(1-B24)
A26: Sample size estimate = | B26: =B21*(1-B21)*(B25/B20)^2 -> 896.3403915 | C26: =B21*(1-B21)*(B25/B20)^2
A27: sample size = | B27: =ROUNDUP(B26,0) -> 897 | C27: =ROUNDUP(B26,0)
